bitfinex-derivatives/quotes_SOLF0:USTF0_20250530
["timestamp","ask_amount","ask_price","bid_price","bid_amount"]
[1748573978158,4.27555679,164.98,164.96,6.061]
[1748573978456,0.04498815,164.98,164.94,0.0458402]
[1748573978656,0.04498815,164.98,164.97,10.29126864]
[1748573978861,31.1,165.06,164.99,4.23056864]
[1748573979156,8.78940659,165.05,165.02,6.0589]
[1748573979363,2.73130659,165.04,164.99,4.23056864]
[1748573979564,2.73130659,165.03,164.99,4.23056864]
[1748573979757,0.04161523,165.03,165.01,6.059]
[1748573979957,0.04161523,165.03,164.99,0.04630112]
[1748573980563,0.04161523,165.03,165.01,6.0592]
[1748573986463,0.04161523,165.03,165.02,6.0589]
[1748573987057,0.04161523,165.03,165.01,6.0591]
[1748573987255,0.04161523,165.03,164.99,0.04630112]
[1748573987869,6.10021523,165.03,165.0,6.0594]
[1748573990069,0.04161523,165.03,165.02,6.0589]
[1748573990272,6.2758,165.08,165.0,31.1]
[1748573990467,2.72896038,165.07,165.0,31.1]
[1748573990666,2.73009256,165.06,165.0,31.1]
[1748573990865,2.73009256,165.05,165.0,31.1]
[1748573991068,6.0573,165.07,165.03,6.0583]
[1748573991265,2.72972483,165.06,165.03,6.09682539]
[1748573991464,2.73061054,165.05,165.03,6.09682539]
[1748573991666,6.0987302,165.07,165.03,6.09682539]
[1748573991861,2.73008909,165.06,165.04,6.0581]
[1748573992063,2.73006237,165.05,165.04,6.0581]
[1748573992773,2.72960929,165.05,165.04,6.0581]
[1748573993072,6.0987302,165.07,165.04,6.0581]
[1748573993275,2.72954547,165.06,165.04,6.0581]
[1748573993475,0.0414302,165.07,165.04,6.0581]
[1748573993679,2.72904144,165.06,165.04,6.0581]
[1748573993875,0.0414302,165.07,165.04,6.0581]
[1748573994075,2.72904692,165.06,165.04,6.0581]
[1748573994377,0.0414302,165.07,165.04,6.0581]
[1748573994572,2.72889423,165.06,165.04,6.0581]
[1748573994779,0.0414302,165.07,165.04,6.0581]
[1748573994965,2.72844116,165.06,165.04,6.0581]
[1748573995172,0.0414302,165.07,165.04,6.0581]
[1748573995473,2.7285773,165.06,165.04,6.0581]
[1748573995674,0.0414302,165.07,165.04,6.0581]
[1748573995875,2.72815456,165.06,165.04,6.0581]
[1748573996074,0.0414302,165.07,165.04,6.0581]
[1748573996377,2.7281951,165.06,165.03,0.03852539]
[1748573996578,6.0986302,165.07,165.03,0.03852539]
[1748573996774,2.72794716,165.06,165.03,0.03852539]
[1748573997079,6.0986302,165.07,165.03,0.03852539]
[1748573997279,2.72794716,165.06,165.03,0.03852539]
[1748573997472,6.0986302,165.07,165.03,0.03852539]
[1748573997678,2.72794907,165.06,165.03,0.03852539]
[1748573997876,0.0414302,165.07,165.03,0.03852539]
[1748573998073,2.72773502,165.06,165.03,0.03852539]
[1748573998277,0.0414302,165.07,165.03,0.03852539]
[1748573998479,2.72762371,165.06,165.03,6.09672539]
[1748573998679,6.0987302,165.07,165.03,6.09672539]
[1748573998882,2.7275764,165.06,165.03,6.09672539]
[1748573999081,6.0987302,165.07,165.03,6.09672539]
[1748573999284,2.72757855,165.06,165.03,6.09672539]
[1748573999484,6.0987302,165.07,165.03,6.09672539]
[1748573999783,2.72753397,165.06,165.03,6.09672539]
[1748573999982,6.0987302,165.07,165.03,6.09672539]
[1748574000181,2.72740708,165.06,165.03,6.09672539]
[1748574000386,6.0987302,165.07,165.03,6.09672539]
[1748574000587,2.72740545,165.06,165.03,6.09672539]
[1748574000782,6.0987302,165.07,165.03,6.09672539]
[1748574001082,2.72740069,165.06,165.03,0.03852539]
[1748574001286,2.72740069,165.05,165.03,0.03852539]
[1748574001486,2.72742656,165.04,165.03,0.03852539]
[1748574001688,2.72736475,165.04,165.03,0.03852539]
[1748574002788,2.72738259,165.04,165.03,0.03852539]
[1748574002988,8.78558259,165.04,165.03,0.03852539]
[1748574003690,8.78565876,165.04,165.03,0.03852539]
[1748574004088,8.78565175,165.04,165.03,0.03852539]
[1748574004385,8.78581306,165.04,165.03,0.03852539]
[1748574004588,8.78571629,165.04,165.03,0.03852539]
[1748574005382,8.78584766,165.04,165.03,0.03852539]
[1748574005787,8.78569748,165.04,165.03,0.03852539]
[1748574005990,6.0582,165.04,165.03,0.03852539]
[1748574006693,8.78563577,165.04,165.03,0.03852539]
[1748574006984,8.78563565,165.04,165.03,0.03852539]
[1748574007189,6.0582,165.04,165.03,0.03852539]
[1748574007388,8.78563804,165.04,165.03,0.03852539]
[1748574007590,8.78549944,165.04,165.03,0.03852539]
[1748574008182,6.0582,165.04,165.03,0.03852539]
[1748574008488,8.78564776,165.04,165.03,0.03852539]
[1748574008685,6.0595,165.01,164.97,31.04]
[1748574008885,31.04,165.05,164.97,31.04]
[1748574009187,2.72753563,165.04,164.97,31.04]
[1748574009485,2.72753563,165.03,164.97,31.04]
[1748574009689,2.7687455,165.02,164.98,0.04605315]
[1748574009889,0.04128861,165.02,164.98,0.04605315]
[1748574010587,6.0593,165.01,164.98,6.10635315]
[1748574011696,6.0593,165.01,164.98,0.04605315]
[1748574011889,6.0597,165.0,164.98,0.04605315]
[1748574012290,0.04128861,165.02,164.98,0.04605315]
[1748574012291,6.06,164.99,164.98,0.04605315]
[1748574012596,0.04128861,165.02,164.98,0.04605315]
[1748574012789,33.7678087,165.01,164.98,0.04605315]
[1748574012989,6.0597,165.0,164.98,0.04605315]
[1748574013383,31.04,165.01,164.98,0.04605315]
[1748574013588,2.72788717,165.0,164.98,0.04605315]
[1748574013796,6.0596,165.0,164.98,0.04605315]
[1748574013993,2.72790068,164.99,164.98,0.04605315]
[1748574014193,6.0596,165.0,164.98,0.04605315]
[1748574016389,6.06,164.99,164.98,0.04605315]
[1748574022702,8.78831905,164.99,164.98,0.04605315]
[1748574023292,6.06,164.99,164.98,0.04605315]
[1748574023490,8.78808329,164.99,164.98,0.04605315]
[1748574023707,6.06,164.99,164.98,0.04605315]
[1748574023896,8.78823377,164.99,164.98,0.04605315]
[1748574024098,8.78827434,164.99,164.98,0.04605315]
[1748574024294,8.78786615,164.99,164.98,0.04605315]
[1748574024497,8.78786615,164.99,164.98,5.315e-05]
[1748574024692,6.0619,164.94,164.89,8.22890433]
[1748574024895,6.0619,164.94,164.89,39.28890433]
[1748574025091,6.0622,164.93,164.89,39.28890433]
[1748574025293,4.23080433,164.94,164.87,4.23080433]
[1748574025496,4.23080433,164.92,164.86,31.06]
[1748574025705,0.03950677,164.91,164.87,0.03930819]
[1748574026599,6.0635,164.9,164.87,0.03930819]
[1748574027005,6.0635,164.9,164.87,6.10360819]
[1748574027507,6.10260677,164.91,164.87,6.10360819]
[1748574028210,6.0633,164.9,164.87,6.10360819]
[1748574029010,0.03950677,164.91,164.87,6.10360819]
[1748574029011,6.10260677,164.91,164.87,6.10360819]
[1748574029809,6.0633,164.9,164.87,6.10360819]
[1748574030805,6.0638,164.89,164.87,0.03930819]
[1748574032205,6.0634,164.9,164.87,0.03930819]
[1748574032410,0.03950677,164.91,164.87,0.03930819]
[1748574032910,6.0639,164.89,164.87,0.03930819]
[1748574033307,0.03950677,164.91,164.87,0.03930819]
[1748574033711,6.0641,164.88,164.87,0.03930819]
[1748574034519,6.0649,164.86,164.83,6.0656]
[1748574035405,6.11107393,164.86,164.83,6.10562684]
[1748574035620,6.0652,164.85,164.83,0.04002684]
[1748574037216,6.0655,164.84,164.83,0.04002684]
[1748574038617,6.0655,164.84,164.77,33.0982]
[1748574038618,31.04,164.85,164.79,6.0673]
[1748574038819,31.04,164.85,164.77,33.0982]
[1748574039021,6.0662,164.83,164.79,6.0671]
[1748574039423,31.04,164.85,164.79,6.0671]
[1748574039618,31.04,164.85,164.79,6.10715638]
[1748574039619,0.03904937,164.83,164.79,6.10715638]
[1748574039823,6.0665,164.82,164.79,6.10715638]
[1748574040519,0.03904937,164.83,164.79,0.04005638]
[1748574040727,6.65744561,164.83,164.79,0.04005638]
[1748574041112,6.0668,164.81,164.79,0.04005638]
[1748574041311,31.04,164.81,164.79,0.04005638]
[1748574041821,6.067,164.8,164.79,0.04005638]
[1748574042619,37.1067,164.81,164.79,0.04005638]
[1748574044424,31.04,164.81,164.79,0.04005638]
[1748574044723,0.03904937,164.83,164.79,0.04005638]
[1748574045228,0.03904937,164.83,164.81,6.0665]
[1748574045431,0.03904937,164.83,164.79,0.04005638]
[1748574045723,0.03904937,164.83,164.82,6.0663]
[1748574053029,0.03904937,164.83,164.81,6.0665]
[1748574053328,0.03904937,164.83,164.79,0.04005638]
[1748574053730,0.03904937,164.83,164.82,6.0663]
[1748574054819,0.03904937,164.83,164.79,0.04005638]
[1748574056122,6.10514937,164.83,164.8,6.0669]
[1748574057928,0.03904937,164.83,164.8,6.0669]
[1748574058224,0.03904937,164.83,164.79,0.04005638]
[1748574059025,31.04,164.9,164.79,31.08005638]
[1748574059227,6.0643,164.88,164.84,6.0653]
[1748574059525,31.04,164.9,164.8,4.0441]
[1748574059928,31.04,164.9,164.86,6.0646]
[1748574060131,31.04,164.9,164.86,6.10813181]
[1748574060132,31.08380149,164.9,164.86,6.10813181]
[1748574060334,37.14740149,164.9,164.86,6.10813181]
[1748574060731,31.08380149,164.9,164.87,6.0642]
[1748574060932,0.04380149,164.9,164.86,0.04353181]
[1748574061228,0.04380149,164.9,164.89,6.0637]
[1748574061422,31.02,164.96,164.87,31.02]
[1748574062027,31.02,164.96,164.89,6.0633]
[1748574062429,0.04057613,164.94,164.91,0.04258564]
[1748574062632,6.0625,164.93,164.91,0.04258564]
[1748574063227,6.0626,164.92,164.91,0.04258564]
[1748574064130,6.064,164.89,164.84,31.02]
[1748574064336,31.02,164.92,164.84,31.02]
[1748574064639,37.63839624,164.92,164.84,31.02]
[1748574064836,37.63839624,164.92,164.81,555.0]
[1748574065039,39.58689624,164.92,164.81,555.0]
[1748574065237,0.0463381,164.88,164.85,0.04193865]
[1748574065634,6.1106381,164.88,164.85,0.04193865]
[1748574067238,0.0463381,164.88,164.85,6.10713865]
[1748574067941,0.0463381,164.88,164.86,6.0647]
[1748574068140,0.0463381,164.88,164.85,0.04193865]
[1748574068337,6.0624,164.93,164.85,31.04193865]
[1748574068841,31.0,164.95,164.85,31.04193865]
[1748574069044,6.0621,164.94,164.9,6.0631]
[1748574069340,0.04536056,164.94,164.9,0.04215698]
[1748574069936,6.10726056,164.94,164.9,6.10535698]
[1748574070130,0.04536056,164.94,164.9,0.04215698]
[1748574071541,6.0599,165.0,164.9,0.04215698]
[1748574071843,2.71853124,164.99,164.9,6.61839624]
[1748574072037,6.0599,165.0,164.9,6.61839624]
[1748574072242,2.71846875,164.99,164.95,6.0613]
[1748574072435,6.0599,165.0,164.95,6.0613]
[1748574072636,6.10220635,164.99,164.96,0.04553272]
[1748574072839,0.04210635,164.99,164.96,0.04553272]
[1748574073034,0.04210635,164.99,164.96,6.10663272]
[1748574073537,0.04210635,164.99,164.98,6.0604]
[1748574073937,6.0583,165.04,164.97,31.0]
[1748574074236,2.71435387,165.06,164.97,31.0]
[1748574074544,6.0593,165.01,164.97,31.0]
[1748574074937,6.09872181,165.01,164.97,31.04196313]
[1748574075842,6.09872181,165.01,164.97,37.10266313]
[1748574076239,6.0597,165.0,164.97,37.10266313]
[1748574077144,6.0597,165.0,164.97,31.04196313]
[1748574077335,0.03942181,165.01,164.97,0.04196313]
[1748574079042,6.0601,164.99,164.97,0.04196313]
[1748574080040,6.0604,164.98,164.97,0.04196313]
[1748574082353,6.0617,164.95,164.9,30.98]
[1748574082748,6.0617,164.95,164.9,37.0431]
[1748574083249,6.0617,164.95,164.91,0.04199323]
[1748574083250,0.04071679,164.94,164.91,0.04199323]
[1748574083458,6.10261679,164.94,164.91,0.04199323]
[1748574086457,0.04071679,164.94,164.91,0.04199323]
[1748574087048,0.04071679,164.94,164.92,6.0624]
[1748574087448,0.04071679,164.94,164.93,6.0622]
[1748574087849,37.0385,165.02,164.91,4.16499323]
[1748574088053,37.0385,165.02,164.91,6.1328]
[1748574088254,6.0602,164.99,164.95,6.0612]
[1748574088453,6.0602,164.99,164.91,6.1328]
[1748574088750,6.0595,165.01,164.97,6.0605]
[1748574088951,6.10464988,165.01,164.97,0.03984637]
[1748574089354,6.10464988,165.01,164.97,6.10044637]
[1748574090456,0.04514988,165.01,164.98,6.0601]
[1748574090857,6.10444988,165.01,164.98,6.0601]
[1748574091252,6.10444988,165.01,164.97,6.10044637]
[1748574092053,6.0597,165.0,164.97,0.03984637]
[1748574094861,6.0597,165.0,164.97,6.10054637]
[1748574095256,6.10454988,165.01,164.97,6.10054637]
[1748574097255,6.10454988,165.01,164.98,6.0603]
[1748574098461,6.10454988,165.01,164.97,6.10044637]
[1748574099764,0.04514988,165.01,164.99,6.06]
[1748574101860,0.04514988,165.01,164.98,6.0603]
[1748574103260,6.10444988,165.01,164.98,6.0603]
[1748574103565,0.04514988,165.01,164.97,6.10044637]
[1748574103755,6.0599,165.0,164.97,0.03984637]
[1748574105165,6.0599,165.0,164.97,6.10054637]
[1748574105960,6.0599,165.0,164.97,0.03984637]
[1748574107969,6.0601,164.99,164.97,0.03984637]
[1748574109067,6.0599,165.0,164.97,0.03984637]
[1748574111770,6.0599,165.0,164.97,6.10044637]
[1748574113076,6.10454988,165.01,164.97,6.10044637]
[1748574113674,6.0597,165.0,164.97,6.10044637]
[1748574113882,0.04514988,165.01,164.97,0.03984637]
[1748574114966,0.04514988,165.01,164.98,6.0603]
[1748574115572,6.10454988,165.01,164.98,6.0603]
[1748574117478,0.04514988,165.01,164.97,6.10044637]
[1748574117684,2.734663,165.0,164.97,0.03984637]
[1748574117874,2.734663,164.99,164.97,0.03984637]
[1748574118074,2.734663,164.98,164.97,0.03984637]
[1748574118883,2.73483643,164.98,164.97,0.03984637]
[1748574119084,8.79523643,164.98,164.97,0.03984637]
[1748574119482,8.7947196,164.98,164.97,0.03984637]
[1748574120182,8.79473145,164.98,164.97,0.03984637]
[1748574120386,2.73456485,164.98,164.88,30.92]
[1748574120588,40.27296109,164.97,164.88,30.92]
[1748574120790,6.0622,164.94,164.9,6.0633]
[1748574121384,6.10286087,164.94,164.9,6.10304194]
[1748574121592,0.04066087,164.94,164.9,0.03974194]
[1748574122591,0.04066087,164.94,164.93,6.0622]
[1748574123196,0.04066087,164.94,164.92,6.0625]
[1748574123394,0.04066087,164.94,164.9,0.03974194]
[1748574123988,0.04066087,164.94,164.92,6.0626]
[1748574124196,0.04066087,164.94,164.9,0.03974194]
[1748574124590,0.04066087,164.94,164.9,6.10284194]
[1748574124984,6.10266087,164.94,164.9,0.03974194]
[1748574125688,6.10266087,164.94,164.9,6.10294194]
[1748574126392,0.04066087,164.94,164.9,0.03974194]
[1748574127097,0.04066087,164.94,164.93,6.0622]
[1748574132494,0.04066087,164.94,164.92,6.0625]
[1748574133493,0.04066087,164.94,164.91,6.0628]
[1748574133695,0.04066087,164.94,164.9,0.03974194]
[1748574134599,0.04066087,164.94,164.91,6.0627]
[1748574135002,0.04066087,164.94,164.9,0.03974194]
[1748574135598,6.0625,164.93,164.9,6.10304194]
[1748574136302,6.0626,164.92,164.9,0.03974194]
[1748574136808,6.10266087,164.94,164.9,6.10274194]
[1748574137198,0.04066087,164.94,164.9,6.10274194]
[1748574137501,6.10256087,164.94,164.9,6.10274194]
[1748574138405,6.10256087,164.94,164.91,6.0629]
[1748574139906,0.04066087,164.94,164.92,6.0625]
[1748574140205,0.04066087,164.94,164.9,0.03974194]
[1748574141001,0.04066087,164.94,164.91,6.0628]
[1748574141404,6.10276087,164.94,164.9,6.10304194]
[1748574141603,0.04066087,164.94,164.9,0.03974194]
[1748574142003,6.0625,164.93,164.9,6.10304194]
[1748574142395,0.04066087,164.94,164.9,0.03974194]
[1748574143004,6.10276087,164.94,164.91,6.0628]
[1748574143309,6.10276087,164.94,164.9,0.03974194]
[1748574143705,6.10276087,164.94,164.9,6.10294194]
[1748574146010,6.10276087,164.94,164.91,6.0629]
[1748574146404,0.04066087,164.94,164.9,0.03974194]
[1748574147309,0.04066087,164.94,164.9,30.95974194]
[1748574148911,0.04066087,164.94,164.93,6.0622]
[1748574149110,0.04066087,164.94,164.9,30.95974194]
[1748574149804,0.04066087,164.94,164.93,6.0622]
[1748574159521,0.04066087,164.94,164.9,30.95974194]
[1748574160019,0.04066087,164.94,164.9,0.03974194]
[1748574160319,6.0624,164.93,164.9,0.03974194]
[1748574160520,0.04066087,164.94,164.9,0.03974194]
[1748574161022,6.0623,164.93,164.9,0.03974194]
[1748574162121,6.10266087,164.94,164.9,6.10304194]
[1748574162321,2.73612826,164.93,164.9,6.10304194]
[1748574162525,6.10266087,164.94,164.9,6.10304194]
[1748574162715,2.73612826,164.93,164.9,6.10304194]
[1748574162910,6.10266087,164.94,164.9,6.10304194]
[1748574163116,2.73649613,164.93,164.9,6.10304194]
[1748574163317,6.0623,164.93,164.9,6.10304194]
[1748574163518,6.0623,164.93,164.9,0.03974194]
[1748574164323,0.04066087,164.94,164.9,0.03974194]
[1748574164524,2.73623158,164.93,164.9,0.03974194]
[1748574164725,6.063,164.91,164.9,0.03974194]
[1748574165023,2.73641019,164.91,164.84,30.9]
[1748574165221,6.064,164.89,164.85,6.0649]
[1748574165920,6.1089067,164.89,164.86,6.0648]
[1748574166325,2.73664881,164.88,164.85,0.04090258]
[1748574166522,0.0449067,164.89,164.85,0.04090258]
[1748574166722,6.0648,164.86,164.85,0.04090258]
[1748574166922,0.0449067,164.89,164.85,0.04090258]
[1748574167223,2.73430519,164.88,164.85,0.04090258]
[1748574167425,6.0647,164.87,164.85,0.04090258]
[1748574167927,6.0648,164.86,164.85,0.04090258]
[1748574168225,6.0648,164.86,164.79,6.0673]
[1748574168226,2.73275647,164.86,164.79,6.0673]
[1748574168523,6.0662,164.83,164.79,6.0673]
[1748574168724,30.9,164.87,164.77,160.12043159]
[1748574168925,8.79537407,164.86,164.77,160.12043159]
[1748574169124,0.04340612,164.83,164.8,0.04170807]
[1748574169329,0.04340612,164.83,164.81,6.0664]
[1748574169634,0.04340612,164.83,164.8,0.04170807]
[1748574170029,0.04340612,164.83,164.82,6.0663]
[1748574174837,30.9,164.9,164.89,6.0637]
[1748574175039,30.9,164.93,164.83,30.9]
[1748574175942,30.9,164.93,164.91,6.0627]
[1748574176140,0.04662169,164.94,164.9,0.04478545]
[1748574176435,0.04207472,164.94,164.9,0.04478545]
[1748574176642,0.04207472,164.94,164.93,6.0622]
[1748574178435,0.04207472,164.94,164.92,6.0625]
[1748574178636,0.04207472,164.94,164.9,0.04478545]
[1748574180038,0.04207472,164.94,164.92,6.0623]
[1748574180234,0.04207472,164.94,164.9,0.04478545]
[1748574180640,0.04207472,164.94,164.92,6.0625]
[1748574183442,0.04207472,164.94,164.9,0.04478545]
[1748574183843,30.88,165.02,164.91,37.49536218]
[1748574184143,36.939,165.02,164.92,2.0629]
[1748574184347,30.88,165.02,164.92,2.0629]
[1748574184541,30.88,165.02,164.95,6.0612]
[1748574184542,6.0599,165.0,164.95,6.0612]
[1748574184846,0.04347272,164.99,164.96,0.04425988]
[1748574185736,0.04347272,164.99,164.96,6.10525988]
[1748574187144,0.04347272,164.99,164.96,0.04425988]
[1748574187649,0.04347272,164.99,164.96,6.10515988]
[1748574189251,0.04347272,164.99,164.97,6.0607]
[1748574191658,6.0607,164.97,164.96,0.04425988]
[1748574192050,37.51827332,164.99,164.96,0.04425988]
[1748574192051,6.0605,164.98,164.96,0.04425988]
[1748574192650,6.0607,164.97,164.96,0.04425988]
[1748574192953,37.51827332,164.99,164.96,0.04425988]
[1748574193349,6.0606,164.98,164.96,0.04425988]
[1748574194051,0.04347272,164.99,164.96,0.04425988]
[1748574194656,6.10367272,164.99,164.96,0.04425988]
[1748574194854,0.04347272,164.99,164.96,0.04425988]
[1748574195355,6.0604,164.98,164.96,0.04425988]
[1748574196850,6.10357272,164.99,164.96,0.04425988]
[1748574197656,0.04347272,164.99,164.96,0.04425988]
[1748574198047,30.86,165.05,164.96,0.04425988]
[1748574198257,6.0582,165.04,164.94,4.0869]
[1748574198454,6.0582,165.04,164.95,30.86]
[1748574198656,30.86,165.05,164.95,30.86]
[1748574198955,30.86,165.05,165.0,6.0596]
[1748574199151,0.04306901,165.02,164.98,0.04470898]
[1748574199352,0.04306901,165.02,164.99,6.0598]
[1748574200255,0.04306901,165.02,164.98,6.10500898]
[1748574200453,0.04306901,165.02,164.98,0.04470898]
[1748574200857,6.0595,165.01,164.98,0.04470898]
[1748574201263,0.04306901,165.02,164.98,0.04470898]
[1748574201860,6.06,164.99,164.98,0.04470898]
[1748574207663,30.86,165.01,164.98,0.04470898]
[1748574207964,0.04306901,165.02,164.98,0.04470898]
[1748574208657,6.10226901,165.02,164.98,6.10470898]
[1748574208962,6.10226901,165.02,164.98,0.04470898]
[1748574209161,0.04306901,165.02,164.98,0.04470898]
[1748574209560,0.04306901,165.02,165.01,6.0592]
[1748574210257,0.04306901,165.02,164.98,0.04470898]
[1748574210862,0.04306901,165.02,164.99,6.0598]
[1748574211159,0.04306901,165.02,164.98,0.04470898]
[1748574212067,6.0593,165.01,164.98,0.04470898]
[1748574212263,0.04306901,165.02,164.98,0.04470898]
[1748574212664,6.06,164.99,164.98,0.04470898]
[1748574213760,6.6148006,165.0,164.9,30.84]
[1748574213973,30.84,164.99,164.93,6.0621]
[1748574214263,30.84,164.99,164.9,30.84]
[1748574214661,6.10242986,164.96,164.93,0.04626517]
[1748574215368,6.0615,164.95,164.93,0.04626517]
[1748574216168,0.04132986,164.96,164.93,0.04626517]
[1748574216763,0.04132986,164.96,164.95,6.0614]
[1748574216969,32.8096,165.02,164.94,30.84]
[1748574217171,2.73162319,165.01,164.94,30.84]
[1748574217369,38.8685,165.02,164.94,30.84]
[1748574217979,0.04485598,165.0,164.97,6.0606]
[1748574218571,0.04485598,165.0,164.96,6.10181652]
[1748574218873,0.04485598,165.0,164.96,0.04101652]
[1748574219066,0.04485598,165.0,164.97,6.0603]
[1748574220380,0.04485598,165.0,164.98,6.0602]
[1748574222272,0.04485598,165.0,164.97,6.0605]
[1748574223881,0.04485598,165.0,164.98,6.0602]
[1748574225678,0.04485598,165.0,164.97,6.0606]
[1748574226078,0.04485598,165.0,164.96,0.04101652]
[1748574226281,0.04485598,165.0,164.98,6.0603]
[1748574226977,0.04485598,165.0,164.99,6.0599]
[1748574228281,0.04485598,165.0,164.98,6.0602]
[1748574229177,0.04485598,165.0,164.99,6.0599]
[1748574229482,0.04485598,165.0,164.96,0.04101652]
[1748574230080,0.04485598,165.0,164.98,6.0602]
[1748574230276,0.04485598,165.0,164.96,0.04101652]
[1748574231181,0.04485598,165.0,164.97,6.0607]
[1748574231383,0.04485598,165.0,164.96,0.04101652]
[1748574231678,6.10465598,165.0,164.96,6.10181652]
[1748574232384,2.73282857,164.99,164.96,0.04101652]
[1748574232574,0.04485598,165.0,164.96,0.04101652]
[1748574232775,2.73309659,164.99,164.96,0.04101652]
[1748574232985,6.0607,164.97,164.96,0.04101652]
[1748574233685,8.79423538,164.97,164.96,0.04101652]
[1748574233878,6.0607,164.97,164.96,0.04101652]
[1748574234075,8.79395381,164.97,164.96,0.04101652]
[1748574234384,6.0607,164.97,164.96,0.04101652]
[1748574234589,30.84,164.97,164.88,554.26]
[1748574235085,30.84,164.97,164.91,6.0626]
[1748574235676,6.0621,164.94,164.92,0.04510838]
[1748574236489,6.0621,164.93,164.92,0.04510838]
[1748574237790,0.04574296,164.96,164.85,6.6148006]
[1748574237791,6.063,164.91,164.85,30.84]
[1748574238781,0.04667544,164.9,164.86,0.03977377]
[1748574238982,37.4548006,165.02,164.88,6.6148006]
[1748574239189,2.72941376,164.99,164.89,30.84]
[1748574239384,2.72941376,164.98,164.89,30.84]
[1748574239583,37.4548006,165.02,164.89,30.84]
[1748574239785,2.72904077,164.99,164.92,6.0624]
[1748574239988,0.03913031,164.97,164.94,0.04647236]
[1748574240186,2.72929866,164.96,164.94,0.04647236]
[1748574240392,0.03913031,164.97,164.94,0.04647236]
[1748574240393,6.0614,164.95,164.94,0.04647236]
[1748574241292,6.0614,164.95,164.9,6.063]
[1748574241293,6.0621,164.94,164.89,6.0635]
[1748574241496,6.0621,164.94,164.86,30.82]
[1748574242191,0.04408455,164.92,164.86,30.82]
[1748574242388,0.04408455,164.92,164.88,0.04623216]
[1748574242791,0.04408455,164.92,164.9,6.0629]
[1748574242988,0.04408455,164.92,164.88,0.04623216]
[1748574243291,30.84,164.98,164.88,6.66103276]
[1748574243596,30.82,165.01,164.88,6.6148006]
[1748574243791,8.78759328,164.99,164.88,6.6148006]
[1748574243991,2.72759328,164.98,164.94,6.0617]
[1748574244193,30.82,165.01,164.91,30.82]
[1748574244391,0.04279953,164.98,164.94,0.04631363]
[1748574244595,0.04279953,164.98,164.95,6.0612]
[1748574244788,0.04279953,164.98,164.94,0.04631363]
[1748574245190,0.04279953,164.98,164.94,6.10791363]
[1748574245999,0.04279953,164.98,164.94,0.04631363]
[1748574247089,6.10309953,164.98,164.94,0.04631363]
[1748574247295,0.04279953,164.98,164.94,0.04631363]
[1748574247493,2.73005796,164.97,164.94,0.04631363]
[1748574247692,2.73016481,164.96,164.94,0.04631363]
[1748574247892,6.0607,164.97,164.94,0.04631363]
[1748574248092,2.73013396,164.96,164.94,0.04631363]
[1748574248292,6.10329953,164.98,164.94,0.04631363]
[1748574248498,2.73014631,164.97,164.94,0.04631363]
[1748574248699,6.10329953,164.98,164.94,0.04631363]
[1748574248896,2.73031647,164.97,164.94,0.04631363]
[1748574249195,6.10329953,164.98,164.94,0.04631363]
[1748574249396,6.0608,164.97,164.94,0.04631363]
[1748574250403,6.0611,164.96,164.94,0.04631363]
[1748574250607,0.04279953,164.98,164.94,0.04631363]
[1748574250795,2.73089159,164.97,164.94,0.04631363]
[1748574251103,0.04279953,164.98,164.94,0.04631363]
[1748574251505,2.73085501,164.97,164.94,0.04631363]
[1748574251704,6.10319953,164.98,164.94,0.04631363]
[1748574251905,2.73106999,164.97,164.94,0.04631363]
[1748574252103,2.73111047,164.96,164.94,0.04631363]
[1748574252406,0.04279953,164.98,164.94,0.04631363]
[1748574252606,2.73124781,164.97,164.94,0.04631363]
[1748574252908,0.04279953,164.98,164.94,0.04631363]
[1748574253104,2.73114925,164.97,164.94,0.04631363]
[1748574253301,0.04279953,164.98,164.94,0.04631363]
[1748574253503,2.73109754,164.97,164.94,0.04631363]
[1748574253702,0.04279953,164.98,164.94,0.04631363]
[1748574253907,2.73136265,164.97,164.95,6.0612]
[1748574254103,0.04279953,164.98,164.94,0.04631363]
[1748574254301,2.73135989,164.97,164.94,0.04631363]
[1748574254506,0.04279953,164.98,164.94,0.04631363]
[1748574254808,2.73160935,164.97,164.94,0.04631363]
[1748574255109,0.04279953,164.98,164.94,0.04631363]
[1748574255309,2.73162563,164.97,164.94,0.04631363]
[1748574255498,0.04279953,164.98,164.94,0.04631363]
[1748574256200,0.04279953,164.98,164.94,6.10791363]
[1748574256909,0.04279953,164.98,164.94,0.04631363]
[1748574257110,6.10309953,164.98,164.94,0.04631363]
[1748574257310,0.04279953,164.98,164.94,6.10801363]